Cogmind - Beta 16.1 @@@ ROGUE MODE // 2026.02.10 @ 08:08:42 Player: Megaknight51 Result: Destroyed by ZF-VN9(R) with Subdweller Laser Performance ------------- Evolutions (0) 0 Regions Visited (2) 400 Robots Destroyed (21) 105 Value Destroyed (415) 415 Prototype IDs (2) 40 Alien Tech Used (0) 0 Bonus (0) 0 TOTAL SCORE: 960 Bonus ------- None Cogmind --------- Core Integrity 0/250 Matter 252/300 Energy 125/125 System Corruption 0% Temperature Cool (6) Movement Core (250) Ox4 Location -10/Subcaves Parts ------- > --- POWER (1) -------- Light Ion Engine > --- PROPULSION (2) --- (None) > --- UTILITY (2) ------ Medium Storage Unit Propulsion Shielding > --- WEAPON (2) ------- Light Assault Rifle > --- INVENTORY (10) --- Aluminum Leg Sensor Array Improved Terrain Scanner Propulsion Shielding Light Armor Plating Grenade Launcher Mining Laser Peak State ------------ > --- POWER ------------ Ion Engine > --- PROPULSION ------- Light Treads Light Treads > --- UTILITY ---------- Small Storage Unit Propulsion Shielding > --- WEAPON ----------- Assault Rifle Assault Rifle > --- INVENTORY -------- Light Ion Engine Light Ion Engine Improved Terrain Scanner Light Armor Plating Light Assault Rifle Light Assault Rifle Grenade Launcher Mining Laser [Rating: 8] Favorites ----------- Power Ion Engine Engine Ion Engine Propulsion Light Treads Treads Light Treads Leg Aluminum Leg Utility Propulsion Shielding Storage Medium Storage Unit Protection Propulsion Shielding Weapon Assault Rifle Ballistic Gun Assault Rifle Special Weapon Mining Laser Build | -11 -10 -10 ------- Run | Yrd Mat Sub Slots Evolved . | . . . Power . | . . . Propulsion . | . . . Utility . | . . . Weapon . | . . . Parts Attached 20 | 6 8 6 Power 4 | 1 2 1 Engine 4 | 1 2 1 Core . | . . . Reactor . | . . . Propulsion 4 | 2 . 2 Treads 3 | 2 . 1 Leg 1 | . . 1 Wheel . | . . . Hover . | . . . Flight . | . . . Utility 6 | 1 4 1 Device . | . . . Storage 2 | 1 1 . Processor . | . . . Hackware . | . . . Protection 4 | . 3 1 Artifact . | . . . Weapon 6 | 2 2 2 Energy Gun . | . . . Energy Cannon . | . . . Ballistic Gun 5 | 2 2 1 Ballistic Cannon . | . . . Launcher . | . . . Special Weapon 1 | . . 1 Impact Weapon . | . . . Slashing Weapon . | . . . Piercing Weapon . | . . . Special Melee Weapon . | . . . Unidentified Prototypes . | . . . Parts Lost 11 | . 5 6 Power 3 | . 2 1 Propulsion 3 | . 1 2 Utility 2 | . 1 1 Weapon 3 | . 1 2 Highest Loss Streak 5 | . 4 5 To Critical Strikes . | . . . Average Backups 7 | 1 7 9 Power 1 | . 1 . Propulsion . | . . . Utility 3 | . 2 4 Weapon 2 | . 3 2 Tool/Special . | . . . Unused Backups 4 | . . 4 Power . | . . . Propulsion . | . . . Utility 3 | . . 3 Weapon 1 | . . 1 Tool/Special . | . . . Average Slot Usage (%) 89 | . 91 84 Engine 13 | . 13 14 Treads 21 | . 23 10 Storage 14 | . 14 14 Protection 10 | . 10 14 Ballistic Gun 27 | . 28 24 Peak Build Rating 8 | 6 8 8 Average Rating 6 | 5 7 6 On Entrance 4 | . 6 7 Avg Prop Armor Cover (%) . | . . . Naked Turns . | . . . Heaviest Build 20 | 14 20 18 Greatest Support 40 | 40 40 20 Greatest Overweight (x) 1 | . . 1 Average Overweight (x) . | . . . Largest Inventory Capacity 10 | 8 10 10 Average Capacity 9 | 7 9 10 Most Carried 10 | 3 10 10 Average Carried 7 | 1 7 9 Final Capacity 10 | 8 10 10 Final Carried 10 | 3 10 7 Class Distribution -------------------- 100% | Mutant Dominant Class ---------------- Mutant | -10/Materials Mutant | -10/Subcaves Resources | -11 -10 -10 ----------- Run | Yrd Mat Sub Matter Collected 713 | 281 402 30 Remotely . | . . . Salvage Created 529 | 62 396 71 Parts 47 | 8 32 7 Haulers Intercepted . | . . . Recyclers Shooed 2 | 1 1 . Parts Field Recycled . | . . . Retrieved Matter . | . . . Parts Self-Destructed 6 | . . 6 Prevented . | . . . Parts Restored . | . . . Kills | -11 -10 -10 ------- Run | Yrd Mat Sub Combat Hostiles Destroyed 15 | . 13 2 Guns 15 | . 13 2 Classes Destroyed 6 | 1 4 1 Builder 1 | . 1 . Tunneler 4 | 4 . . Operator 1 | . 1 . Swarmer 7 | . 6 1 Grunt 7 | . 7 . Sentry 1 | . . 1 Best Kill Streak 3 | 2 3 1 Combat Bots Only 3 | . 3 1 Max Kills in Single Turn 1 | 1 1 1 Gunslinging . | . . . Exploded . | . . . Melee . | . . . Uniques/NPCs Destroyed . | . . . Combat | -11 -10 -10 -------- Run | Yrd Mat Sub Hostile Shots Fired 146 | . 108 38 Missed 27 | . 20 7 Hits 119 | . 88 31 Projectile 119 | . 88 31 Critical Strikes 3 | . 1 2 Damage Taken 1415 | . 870 545 Core 259 | . 109 150 Absorbed by Shields . | . . . Redirected to Shielding 126 | . 68 58 Core Remaining (%) 100 | 100 . . Volleys Fired 100 | 10 65 25 Largest 2 | 2 2 2 Hottest 100 | 40 40 100 Shots Fired 186 | 20 129 37 Gun 182 | 20 129 33 Cannon . | . . . Launcher . | . . . Special 4 | . . 4 Kinetic 182 | 20 129 33 Thermal 4 | . . 4 Explosive . | . . . Electromagnetic . | . . . Robot Hit Streak 29 | 8 10 29 Robot Miss Streak 3 | 1 3 2 Penetration Max . | . . . Secondary Targets 1 | . 1 . Max Gunslinging Chain 1 | . 1 . Shots Hit Robots 118 | 14 75 29 Core Hits 39 | 4 28 7 Critical Kills . | . . . Critical Parts Destroyed . | . . . Critical Strikes . | . . . Melee Attacks . | . . . Impact . | . . . Slashing . | . . . Piercing . | . . . Sneak Attacks . | . . . Combat Hostiles . | . . . Follow-up Attacks . | . . . Damage Inflicted 1260 | 181 851 228 Guns 1253 | 181 844 228 Cannons . | . . . Explosions . | . . . Melee . | . . . Ramming 7 | . 7 . Kinetic 1253 | 181 844 228 Thermal . | . . . Explosive . | . . . Electromagnetic . | . . . Impact . | . . . Slashing . | . . . Piercing . | . . . Highest Corruption . | . . . Average Corruption . | . . . Corruption Purged . | . . . Corruption Blocked . | . . . Overload Shots . | . . . Overflow Damage . | . . . Projectiles . | . . . Explosions . | . . . Melee . | . . . Knockbacks . | . . . Impact . | . . . Kinetic . | . . . Secondary . | . . . Self-Inflicted Damage . | . . . Shots . | . . . Rammed 2 | . 2 . Targets Rammed 2 | . 2 . Kicked . | . . . Crushed . | . . . Highest Temperature 20 | . 20 7 Average Temperature 8 | . 8 7 Received Heat Transfer 489 | . 303 186 Siege Activations . | . . . Martial Activations . | . . . Shielding Activations . | . . . Robots Disrupted . | . . . Combat Hostiles . | . . . Robots Corrupted . | . . . Combat Hostiles . | . . . Parts Fried . | . . . Impact Corruptions . | . . . Robots Melted . | . . . Combat Hostiles . | . . . Parts Melted . | . . . Heat Transferred . | . . . Parts Sabotaged . | . . . Parts Stolen . | . . . Parts Stripped . | . . . Power Chain Reactions . | . . . Alert | -11 -10 -10 ------- Run | Yrd Mat Sub Maximum Alert Level . | . . . Low Security (%) 100 | 100 100 . Level 1 . | . . . Level 2 . | . . . Level 3 . | . . . Level 4 . | . . . Level 5 . | . . . High Security . | . . . Max Security . | . . . Peak Influence 96 | 10 96 . Initial . | . . . Average 23 | . 26 . Influence Increases 433 | 20 373 40 Destroy 0b10 Robot/C 300 | . 260 40 Destroy 0b10 Robot/NC 30 | 20 10 . Destroy Leader 60 | . 60 . Successful Hack 12 | . 12 . Destroy Structure 1 | . 1 . Lose Combat Pursuer 30 | . 30 . Influence Decreases 433 | 20 371 42 Entered New Map 2 | . . 2 Time Decay 381 | 20 321 40 Lost Part 50 | . 50 . Squads Dispatched 3 | . 3 . Investigation 1 | . 1 . Extermination . | . . . Reinforcement 2 | . 2 . Assault . | . . . Garrison . | . . . Intercept . | . . . Searches Triggered . | . . . Construction Impeded . | . . . Haulers Reinforced . | . . . Active Scanning Responses . | . . . Cargo Convoy Interrupts . | . . . Stealth | -11 -10 -10 --------- Run | Yrd Mat Sub Distress Signals 5 | . 5 . Communications Jammed . | . . . Distress Signals . | . . . Times Spotted 28 | . 24 4 Peak Tracking Total 4 | . 4 2 Tactical Retreats 1 | . 1 . Traps | -11 -10 -10 ------- Run | Yrd Mat Sub Traps Triggered 1 | . 1 . Indirectly . | . . . Trap Hack Attempts . | . . . Triggered . | . . . Disarmed . | . . . Reprogrammed . | . . . Reused . | . . . Traps Extracted . | . . . Installed . | . . . Triggered . | . . . Machines | -11 -10 -10 ---------- Run | Yrd Mat Sub Machines Disabled . | . . . Max in Single Turn . | . . . Machines Repaired . | . . . Machines Dismantled . | . . . Machines Sabotaged . | . . . Overloaded Fab Kills . | . . . Hacking | -11 -10 -10 --------- Run | Yrd Mat Sub Machines Accessed 2 | . 2 . Terminals 2 | . 2 . Fabricators . | . . . Repair Stations . | . . . Recycling Units . | . . . Scanalyzers . | . . . Garrison Access . | . . . Total Hacks 6 | . 6 . Successful 3 | . 3 . Failed 3 | . 3 . Catastrophic 1 | . 1 . Database Lockouts . | . . . Manual 5 | . 5 . Terminals 6 | . 6 . Fabricators . | . . . Repair Stations . | . . . Recycling Units . | . . . Scanalyzers . | . . . Garrison Access . | . . . Terminal Hacks 3 | . 3 . Robot Analysis 1 | . 1 . Prototype ID Bank 1 | . 1 . Terminal Index 1 | . 1 . Fabricator Hacks . | . . . Repair Station Hacks . | . . . Recycling Unit Hacks . | . . . Scanalyzer . | . . . Garrison Access Hacks . | . . . Unauthorized Hacks . | . . . Terminals . | . . . Fabricators . | . . . Repair Stations . | . . . Recycling Units . | . . . Scanalyzers . | . . . Garrison Access . | . . . Data Cores Recovered . | . . . Used . | . . . Hacking Detections 2 | . 2 . Full Trace Events . | . . . Feedback Events . | . . . Feedback Blocked . | . . . Robot Schematics Acquired . | . . . Robots Built . | . . . Authchips . | . . . Time . | . . . Total Robot Build Rating . | . . . Part Schematics Acquired . | . . . Parts Built . | . . . Authchips . | . . . Time . | . . . Total Part Build Rating . | . . . Part Studies Acquired . | . . . Parts Repaired . | . . . Time . | . . . Parts Recycled . | . . . Recycled Matter . | . . . Retrieved Matter . | . . . Retrieved Components . | . . . Parts Scanalyzed . | . . . Part Schematics Acquired . | . . . Parts Damaged . | . . . Bothacking | -11 -10 -10 ------------ Run | Yrd Mat Sub Used RIF Installer . | . . . Robots Hacked . | . . . Non-combat . | . . . Combat . | . . . Robot Hacks Applied . | . . . Relay Couplers Released . | . . . Fabnet Peak Effective % . | . . . Robots Rewired . | . . . Allies Hacked . | . . . Hacks Repelled . | . . . Allies | -11 -10 -10 -------- Run | Yrd Mat Sub Total Allies . | . . . Largest Group . | . . . Highest-Rated Group . | . . . Highest-Rated Ally . | . . . Total Orders . | . . . Ally Attacks . | . . . Total Damage . | . . . Kills . | . . . Allies Corrupted . | . . . Allies Melted . | . . . Intel | -11 -10 -10 ------- Run | Yrd Mat Sub Active Infowar (turns) . | . . . Robot Analysis Total 1 | . 1 . Derelict Logs Recovered . | . . . Drone Launches . | . . . Drone Recoveries . | . . . Exploration | -11 -10 -10 ------------- Run | Yrd Mat Sub Turns Passed 1941 | 174 1454 313 Spaces Moved 933 | 88 722 123 Core 7 | 7 . . Treads 922 | 81 722 119 Legs 4 | . . 4 Wheels . | . . . Hover . | . . . Flight . | . . . Fastest Speed 50 | 50 160 160 Average Speed 159 | 151 160 160 Slowest Speed 190 | 160 160 190 Overloaded Moves . | . . . Propulsion Burnouts . | . . . Robots Hopped . | . . . Potential Cave-ins 1 | . 1 . Cave-ins Triggered . | . . . Exploration Rate (%) 34 | 4 91 9 Regions Visited 2 Branch Regions 1 Pre-discovered Areas . | . . . Known Exits Taken . | . . . Unknown Exits Taken 2 | 1 1 . Scrap Searched . | . . . Spaces Dug . | . . . Terrain Destroyed . | . . . Melee . | . . . Projectile . | . . . AOE . | . . . Terrain Rammed . | . . . Walls Destroyed . | . . . Machines Disabled . | . . . Actions | -11 -10 -10 --------- Run | Yrd Mat Sub Total 1203 | 106 898 199 Wait 132 | . 89 43 Move 931 | 87 721 123 Hop . | . . . Pick Up 12 | 3 9 . Fast Attach 10 | 6 3 1 Attach 7 | . 3 4 Detach 2 | . 1 1 Swap 5 | . 3 2 Drop 2 | . 2 . Fire 100 | 10 65 25 Melee . | . . . Ram . | . . . Kick . | . . . Crush 2 | . 2 . Escape Stasis . | . . . Rewire . | . . . Trap . | . . . Miscellaneous . | . . . Route ------- -11/Scrapyard -10/Materials (discovered 4 exits: [*Mat x3] / [*Sub]) -10/Subcaves History --------- Turn | Location | Event 13 | -11/Scrapyard | Discovered new exit (range 16) 175 | -11/Scrapyard | Entered Materials 275 | -10/Materials | Discovered new exit (range 7) 309 | -10/Materials | Build established: Mutant 875 | -10/Materials | Derelicts attacked the area 1115 | -10/Materials | Lost 4 parts (2p1u1w) 1191 | -10/Materials | Discovered new exit (range 6) 1342 | -10/Materials | Discovered new exit (range 15) 1512 | -10/Materials | Discovered new exit (range 12) 1629 | -10/Materials | Entered Subcaves 1911 | -10/Subcaves | Core integrity fell below 50% 1937 | -10/Subcaves | Core integrity fell below 20% 1942 | -10/Subcaves | Destroyed by ZF-VN9(R) with Subdweller Laser Last Messages --------------- 01650_ S-10 Pest destroyed. 01652_ Subatomizers dissect the Flight Unit. 01666_ Flight Unit fries itself beyond repair. 01666_ Subatomizers dissect the Lgt. Assault Rifle. 01667_ Flight Unit fries itself beyond repair. 01668_ Lgt. Assault Rifle fries itself beyond repair. 01694_ Critical hit (Burn: +37). 01698_ Y-45 Defender destroyed. 01700_ Acquired Lgt. Treads. 01703_ Heat Sink fries itself beyond repair. 01703_ Acquired 30 matter. 01704_ Heat Sink fries itself beyond repair. 01705_ Subatomizers dissect the Imp. Ion Engine. 01706_ Imp. Ion Engine fries itself beyond repair. 01902_ QO-HE6(R): "WINNING!" 01906_ Lgt. Assault Rifle destroyed. 01922_ Propulsion Shielding destroyed. 01924_ Ion Engine destroyed. 01926_ Lgt. Assault Rifle destroyed. 01940_ Lgt. Treads destroyed. Map ----- +----------------------------------------------------+ | ???????????????## #????##? ??# ??? | | ????????????????# ##?????? #?# #?? | | ????????????????# ######## ## #?? | | ????????????????# ## #?? | | ???????????????## #?? | | ???????????????# % ## #?? | | ???????????????## %### ## #?? | | ????????????????# #?## #???? | | ???????????????# #??# #???? | | ??????????????# ###??## ### #???? | | ??????????????## ##?????# # # #???? | | ???????????????######?????## #???? | | ??????????????????????????# # #"" #?? | | ??????????????????????????## #####?? #? | | ??????????????????????????# #????????????? | | ????????????????????##????# ##???????????? | | ????????????????????# ## #####??? ??? | | ?????????????# # # # ???? | | ?????????????# # ## # "" ???? | | ?????????????????????######?## """"" "????? | | ?????????????????????????????# """# #????? | | ?????????????????????????????# ""##?##?????? | | ??????????????#####?????????## ##?????????? | | ???????????????$$$<##??????## ""##?????????? | | ????????????????? R #?###### """##????????? | | ???????????????####@### # # """ #????????? | | ???????????????# <## """"" #????????? | | ??????????????###R### """ ""#???????? | | ??????????????# < "# "" #"" "#???????? | | ??????????????# ""###### "#???????? | | ??????????????# """"""##?????# "????????? | | ??????????????##" " "##??????? ""????????? | | ???????????????# "" ##????????? ?" ???????? | | ???????????????#" ""##???????????"?????????? | | ???????????????#"" #??????????????????????? | | ???????????????# "" "??????????????????????? | | ???????????????# """"?????????????????????? | | ???????????????#####""?????????????????????? | | ???????????????????????????????????????????? | | ???????????????????????????????????????????? | | ???????????????????????????????????????????? | | ???????????????????????????????????????????? | | ???????????????????????????????????????????? | | ???????????????????????????????????????????? | | ???????????????????????????????????????????? | | ???????????????????????????????????????????? | | ???????????????????????????????????????????? | | ???????????????????????????????????????????? | | ???????????????????????????????????????????? | | ???????????????????????????????????????????? | +----------------------------------------------------+ Best States ------------- Heat Dissipation 25 Energy Generation 10 Energy Capacity 250 Matter Stores 300 Matter Capacity 300 Sight Range 16 Terrain Scan Density 10 Armor Coverage 150 Propulsion Shielding 33 Evasion (%) 40 Recoil Reduction 2 Item Schematics ----------------- None Robot Schematics ------------------ None Fabricated ------------ Nothing Repaired ---------- Nothing Studied --------- None Alien Tech Used ----------------- None Achievements -------------- None Challenges ------------ None Game ------ Seed SubatomicShrapnelProtomatter Manual? 0 Play Time 00:10:03 Cumulative 59.5 hours Start 2026.02.10 @ 07:52:03 End 2026.02.10 @ 08:08:42 Sessions 1 Manual Loads 0 Difficulty Rogue Special Mode None Game No. 124 Rogue 124 Adventurer 0 Explorer 0 Win Type - Total 0 Types 0/0/0/0/0/0/0/0/0/0 Lore% 36 Gallery% 31 Achievement% 29 Wizard Run 0 Options --------- Layout 0 ASCII 0 Keyboard 1 Movement Arrows Keybinds 0 Fullscreen 1 Font 18/Smallcaps Map View 38x25 Zoom Use 95% Tactical HUD 1 Map Filters NONE Filters NONE Steam 1 RUN: 540f304c-fa67-4251-bc76-6978f9d709fe